bitfinex-derivatives/quotes_ETHF0:USTF0_20250403
["timestamp","ask_amount","ask_price","bid_price","bid_amount"]
[1743660003556,2.1733,1822.7,1822.5,1.4426]
[1743660003755,1.4827,1822.6,1822.5,1.4426]
[1743660004363,4.6905,1822.6,1822.5,2.32054]
[1743660004663,4.6905,1822.6,1822.5,0.87794]
[1743660005755,4.6905,1822.6,1822.4,3.0605]
[1743660006060,2.2778,1822.5,1822.4,3.0605]
[1743660006256,2.2778,1822.5,1822.3,0.87804]
[1743660006453,2.2778,1822.5,1822.3,4.49604]
[1743660006651,1.5217,1822.4,1822.3,4.49604]
[1743660006858,1.5217,1822.4,1822.3,6.63634]
[1743660007649,4.7295,1822.4,1822.2,0.87809]
[1743660007862,5.4879,1822.4,1822.1,4.49614]
[1743660008161,5.4879,1822.4,1822.0,2.1005]
[1743660008162,2.2777,1822.3,1822.0,2.1005]
[1743660008352,4.6074,1822.2,1821.9,0.87824]
[1743660008551,2.1395,1822.1,1821.9,0.87824]
[1743660008755,1.4983,1822.1,1821.9,2.28545]
[1743660011660,1.4983,1822.1,1821.8,0.87828]
[1743660012164,1.4983,1822.1,1821.8,2.28648]
[1743660012962,3.2078,1822.0,1821.8,2.28648]
[1743660013669,3.2078,1822.0,1821.9,0.87827]
[1743660013872,3.2078,1822.0,1821.9,2.40007]
[1743660015461,3.2078,1822.0,1821.9,1.5218]
[1743660016272,3.2078,1822.0,1821.9,2.40007]
[1743660017274,3.2078,1822.0,1821.9,1.5218]
[1743660018763,3.2078,1822.0,1821.9,2.40007]
[1743660022472,2.18,1822.1,1822.0,0.87822]
[1743660022667,0.7399,1822.1,1822.0,2.36862]
[1743660023581,0.7399,1822.1,1822.0,1.4904]
[1743660023767,2.1781,1822.1,1822.0,2.36862]
[1743660027082,23.28211653,1822.1,1822.0,2.36862]
[1743660027674,23.28211653,1822.1,1821.6,0.00959356]
[1743660027872,23.28211653,1822.1,1820.7,3.7574]
[1743660027873,3.2078,1821.7,1820.7,3.2078]
[1743660028072,3.2078,1821.2,1820.8,1.4192]
[1743660028276,3.21602323,1821.4,1820.8,4.627]
[1743660028477,3.21602323,1821.4,1821.3,0.87856]
[1743660028781,0.00822323,1821.4,1821.3,0.87856]
[1743660029474,3.21602323,1821.4,1821.2,0.7261]
[1743660029870,1.4937,1821.3,1821.2,0.7261]
[1743660030474,1.4937,1821.3,1821.2,1.60471]
[1743660030673,0.00822323,1821.4,1821.3,0.87856]
[1743660030876,0.00822323,1821.4,1821.3,1.60106]
[1743660031088,0.00822323,1821.4,1821.3,3.03656]
[1743660031382,0.00822323,1821.4,1821.3,0.87856]
[1743660031975,0.00822323,1821.4,1821.3,2.40166]
[1743660032284,0.00822323,1821.4,1821.3,1.5231]
[1743660032579,0.00822323,1821.4,1821.3,2.40166]
[1743660034885,0.00822323,1821.4,1821.3,6.05166]
[1743660035285,0.00822323,1821.4,1821.3,8.55166]
[1743660036279,0.00822323,1821.4,1821.3,6.05166]
[1743660036774,0.00822323,1821.4,1821.3,8.55166]
[1743660036976,3.23e-06,1821.4,1821.3,8.55166]
[1743660037178,21.10401653,1822.1,1822.0,0.87822]
[1743660037687,22.50991653,1822.1,1822.0,0.87822]
[1743660037988,21.10401653,1822.1,1822.0,0.87822]
[1743660038595,21.10401653,1822.1,1822.0,2.34802]
[1743660039382,21.10401653,1822.1,1822.0,6.00002]
[1743660039688,0.00822323,1822.2,1822.1,0.87817]
[1743660039878,0.00822323,1822.2,1822.1,6.98807]
[1743660040484,22.48231653,1822.5,1822.1,6.98807]
[1743660040485,21.10401653,1822.5,1822.4,0.87803]
[1743660041085,21.10401653,1822.5,1822.4,2.26083]
[1743660041885,21.08619975,1822.5,1822.4,4.76083]
[1743660042184,0.00822323,1822.6,1822.5,0.87798]
[1743660042386,0.00822323,1822.6,1822.5,6.22208]
[1743660042893,0.00822323,1822.6,1822.5,3.01428]
[1743660043184,0.00822323,1822.6,1822.3,3.2078]
[1743660043488,0.00822323,1822.6,1822.3,4.08585]
[1743660043690,1.38552323,1822.6,1822.3,4.08585]
[1743660044687,1.38552323,1822.6,1822.4,0.87801]
[1743660046098,1.38552323,1822.6,1822.5,0.87798]
[1743660046782,1.38552323,1822.6,1822.5,2.36848]
[1743660047082,0.00822323,1822.6,1822.5,2.36848]
[1743660047277,0.00822323,1822.6,1822.5,5.57628]
[1743660050283,0.00822323,1822.6,1822.5,2.36848]
[1743660050992,0.00822323,1822.6,1822.5,0.87798]
[1743660051191,1.43162323,1822.6,1822.4,4.3723]
[1743660051393,1.43162323,1822.6,1822.5,0.87798]
[1743660051794,1.43162323,1822.6,1822.5,2.33898]
[1743660051996,1.43162323,1822.6,1822.4,1.5993]
[1743660052290,0.6901,1822.5,1822.4,0.878]
[1743660055298,0.6901,1822.5,1822.4,2.2949]
[1743660056097,1.43162323,1822.6,1822.5,0.87798]
[1743660056297,1.43162323,1822.6,1822.5,3.05908]
[1743660056798,0.00822323,1822.6,1822.5,3.05908]
[1743660057096,0.00822323,1822.6,1822.5,6.70508]
[1743660058496,0.00822323,1822.6,1822.5,9.91288]
[1743660059789,0.1264,1822.9,1822.8,0.87784]
[1743660059994,0.1264,1822.9,1822.8,4.52884]
[1743660060189,3.65678527,1823.0,1822.9,0.87779]
[1743660060405,3.65678527,1823.0,1822.9,4.08559]
[1743660060406,0.23600527,1823.0,1822.9,4.08559]
[1743660060595,26.71565569,1823.5,1823.4,0.87755]
[1743660061500,22.40781569,1823.5,1823.4,4.08535]
[1743660061800,0.00822323,1823.6,1823.5,0.8775]
[1743660061998,0.00822323,1823.6,1823.5,6.0132]
[1743660062505,0.00822323,1823.6,1823.5,0.8775]
[1743660062698,0.00822323,1823.6,1823.5,2.3523]
[1743660066298,0.00822323,1823.6,1823.5,0.8775]
[1743660066505,0.00822323,1823.6,1823.5,4.5525]
[1743660068810,0.00822323,1823.6,1823.5,6.0283]
[1743660070313,0.00822323,1823.6,1823.5,4.5525]
[1743660071110,0.00822323,1823.6,1823.5,6.0283]
[1743660081621,0.1262,1823.9,1823.8,0.87735]
[1743660081811,0.1262,1823.9,1823.8,7.74115]
[1743660082119,1.4797,1823.9,1823.8,4.53335]
[1743660082818,1.4797,1823.9,1823.8,0.87735]
[1743660084013,1.4797,1823.9,1823.8,2.28665]
[1743660084910,0.75022323,1824.0,1823.9,0.87731]
[1743660085214,2.19832323,1824.0,1823.9,2.28661]
[1743660085517,0.00822323,1824.0,1823.9,9.15441]
[1743660086120,0.00822323,1824.0,1823.9,9.86511]
[1743660088819,2.1928,1824.1,1823.9,9.86511]
[1743660089022,0.82532323,1824.1,1824.0,0.87726]
[1743660089223,0.1262,1824.2,1824.0,0.87726]
[1743660089224,0.1262,1824.2,1824.1,0.87721]
[1743660089522,1.4657,1824.3,1824.2,0.87716]
[1743660089723,1.4657,1824.3,1824.2,4.53616]
[1743660090928,3.91902323,1824.4,1824.3,0.87711]
[1743660091115,0.71122323,1824.4,1824.3,6.23881]
[1743660091622,0.00822323,1824.4,1824.3,6.23881]
[1743660092524,1.51392323,1824.4,1824.3,6.23881]
[1743660095226,0.00822323,1824.4,1824.3,6.23881]
[1743660096429,0.00822323,1824.4,1824.3,6.99551]
[1743660096927,0.00822323,1824.4,1824.3,6.23881]
[1743660097524,1.42022323,1824.4,1824.3,6.23881]
[1743660097920,1.42022323,1824.4,1824.3,4.08491]
[1743660098128,1.42022323,1824.4,1824.3,0.87711]
[1743660099630,1.42022323,1824.4,1824.2,0.87714]
[1743660100038,1.42022323,1824.4,1824.3,0.87711]
[1743660102629,1.42022323,1824.4,1823.7,3.2078]
[1743660102630,7.12802323,1824.4,1823.7,3.2078]
[1743660102829,0.87714,1824.3,1823.7,6.8608]
[1743660103032,0.6977,1824.2,1823.7,6.8608]
[1743660103335,1.4958,1824.1,1823.7,3.653]
[1743660103828,1.4958,1824.1,1823.9,0.87729]
[1743660104533,1.4958,1824.1,1823.8,0.87734]
[1743660104738,3.2078,1824.0,1823.8,0.87734]
[1743660105035,1.4722,1823.9,1823.8,0.87734]
[1743660105238,2.2122,1823.9,1823.7,0.87737]
[1743660105435,0.7386,1823.8,1823.7,0.87737]
[1743660105738,2.2108,1823.8,1823.7,0.87737]
[1743660106644,0.74,1823.9,1823.7,0.87737]
[1743660106843,3.2078,1824.2,1824.1,0.87721]
[1743660107039,0.74,1824.3,1824.2,0.87716]
[1743660108147,2.9513,1824.3,1824.2,0.87716]
[1743660111045,2.2113,1824.3,1824.2,0.87716]
[1743660111248,2.2113,1824.3,1824.2,2.28276]
[1743660111448,0.7222,1824.3,1824.2,2.28276]
[1743660111752,1.41092323,1824.4,1824.3,0.87711]
[1743660111947,1.41092323,1824.4,1824.3,2.28271]
[1743660113050,0.00822323,1824.4,1824.3,2.28271]
[1743660113246,0.00822323,1824.4,1824.3,2.99341]
[1743660121959,0.00822323,1824.4,1824.3,3.42425875]
[1743660122565,0.1262,1824.5,1824.4,0.87707]
[1743660122762,0.1262,1824.5,1824.4,9.12057]
[1743660123067,3.2078,1825.1,1824.9,0.87683]
[1743660123268,1.4721,1825.2,1825.1,0.87673]
[1743660123471,1.4721,1825.2,1824.9,0.87682]
[1743660123662,3.2078,1825.1,1824.9,0.87682]
[1743660123864,2.1914,1825.0,1824.9,0.87682]
[1743660124567,2.1914,1825.0,1824.9,2.26732]
[1743660125166,2.1914,1825.0,1824.9,2.97102]
[1743660125771,3.94350501,1825.3,1825.1,0.8767]
[1743660125970,2.1914,1825.2,1825.1,0.8767]
[1743660127172,2.1914,1825.2,1825.0,0.87675]
[1743660127373,1.5149,1825.1,1825.0,0.87675]
[1743660127574,1.5149,1825.1,1824.9,0.8768]
[1743660127775,0.7254,1825.0,1824.9,0.8768]
[1743660128375,1.5149,1825.1,1825.0,0.87678]
[1743660130477,1.5149,1825.1,1824.9,0.8768]
[1743660131276,1.5149,1825.1,1825.0,0.87678]
[1743660135077,4.7227,1825.1,1825.0,0.87678]
[1743660136071,4.7227,1825.1,1824.8,0.00822323]
[1743660136072,7.2227,1825.1,1824.8,0.00822323]
[1743660136276,4.08463,1824.9,1824.8,0.00822323]
[1743660136776,4.80793,1824.9,1824.8,0.00822323]
[1743660137578,3.9311,1824.9,1824.8,0.88509323]
[1743660137877,4.80793,1824.9,1824.8,0.00822323]
[1743660138175,6.21273,1824.9,1824.8,0.00822323]
[1743660138568,9.83373,1824.9,1824.8,0.00822323]
[1743660139177,0.87697,1824.6,1823.9,3.2078]
[1743660139377,0.7431,1824.5,1824.3,0.87708]
[1743660139573,0.7428,1824.4,1824.3,0.87711]
[1743660139778,1.3901,1824.5,1824.4,0.87707]
[1743660140076,3.2078,1824.6,1824.5,0.87702]
[1743660140279,3.9506,1824.7,1824.6,0.87697]
[1743660140671,5.3407,1824.7,1824.6,0.87697]
[1743660141677,5.3407,1824.7,1824.5,2.26789]
[1743660141977,1.3867,1824.6,1824.4,0.88527323]
[1743660142480,0.7121,1824.5,1824.4,0.88527323]
[1743660143774,3.9199,1824.5,1824.4,0.00822323]
[1743660146679,3.2078,1824.5,1824.4,0.88529323]
[1743660146877,1.5129,1824.6,1824.5,0.87702]
[1743660147582,1.5129,1824.6,1824.5,3.07452]
[1743660148678,0.1262,1824.6,1824.5,3.07452]
[1743660149178,0.1262,1824.6,1824.5,1.60662]
[1743660149367,1.52,1824.6,1824.5,1.60662]
[1743660150379,1.52,1824.6,1824.5,2.98472]
[1743660150775,0.1262,1824.6,1824.5,2.98472]
[1743660151868,1.5625,1824.6,1824.5,2.98472]
[1743660152481,1.5625,1824.6,1824.4,0.00822323]
[1743660152683,2.2828,1824.6,1824.4,0.00822323]
[1743660152869,1.5625,1824.6,1824.5,0.87702]
[1743660153069,1.5625,1824.6,1824.5,3.04502]
[1743660155470,1.5625,1824.6,1824.2,5.80386]
[1743660155471,4.0625,1824.6,1824.1,3.2078]
[1743660155674,3.2078,1824.2,1824.0,0.87724]
[1743660155878,0.7384,1824.1,1824.0,0.87724]
[1743660156083,2.182,1824.1,1824.0,0.87724]
[1743660158488,2.182,1824.1,1824.0,2.35734]
[1743660158679,3.21602323,1824.2,1824.1,0.87721]
[1743660158879,3.21602323,1824.2,1824.1,2.35731]
[1743660159876,0.00822323,1824.2,1824.1,2.35731]
[1743660164082,0.00822323,1824.2,1824.1,5.56511]
[1743660165388,0.6912,1824.7,1824.6,0.87697]
[1743660166080,0.6912,1824.7,1824.6,3.03067]
[1743660166588,0.00822323,1824.8,1824.7,0.87692]
[1743660166787,0.00822323,1824.8,1824.7,2.30292]
[1743660172491,0.00822323,1824.8,1824.7,0.87692]
[1743660175486,0.00822323,1824.8,1824.7,2.30262]
[1743660176184,5.71602323,1824.8,1824.3,3.2078]
[1743660176389,3.2078,1824.6,1824.1,8.9925]
[1743660176692,2.2064,1824.5,1824.3,0.87711]
[1743660176886,1.5024,1824.4,1824.3,0.87711]
[1743660177286,1.5024,1824.4,1824.1,7.5668]
[1743660177287,1.5024,1824.4,1824.1,3.9408]
[1743660178293,2.37947,1824.4,1824.1,4.81799]
[1743660178594,1.5024,1824.4,1824.1,4.81799]
[1743660178794,1.447,1824.3,1824.1,4.81799]
[1743660179292,1.447,1824.3,1824.2,0.87716]
[1743660179492,1.447,1824.3,1824.2,2.26076]
[1743660179995,0.704,1824.5,1824.3,0.87708]
[1743660180292,3.21602323,1824.8,1824.6,0.87693]
[1743660180494,3.21602323,1824.8,1824.6,0.87694]
[1743660180688,1.447,1824.7,1824.6,0.87694]
[1743660181190,1.447,1824.7,1824.5,5.89659]
[1743660182093,1.447,1824.7,1824.6,0.87697]
[1743660182295,1.447,1824.7,1824.6,2.31167]
[1743660182898,1.447,1824.7,1824.6,0.87697]
[1743660183094,3.21602323,1824.8,1824.7,0.87692]
[1743660183299,3.21602323,1824.8,1824.7,1.58932]
[1743660183691,4.73742323,1824.8,1824.7,1.58932]
[1743660185597,3.21602323,1824.8,1824.7,1.58932]
[1743660185795,0.00822323,1824.8,1824.7,4.79712]
[1743660185999,0.00822323,1824.8,1824.7,5.52282]
[1743660190298,1.27649085,1825.6,1825.5,0.87654]
[1743660190500,1.27649085,1825.6,1824.9,2.19199]
[1743660190501,0.735,1825.6,1825.4,0.87656]
[1743660190803,0.735,1825.6,1825.5,0.87654]
[1743660191009,0.735,1825.6,1825.4,0.87656]
[1743660191701,1.4768,1825.5,1825.4,0.87656]
[1743660191899,1.4768,1825.5,1825.4,2.39496]
[1743660193493,1.4768,1825.5,1825.4,0.87656]
[1743660195306,1.4768,1825.5,1825.3,1.57843323]
[1743660195609,4.6846,1825.5,1825.3,0.88483323]
[1743660195998,1.4141,1825.4,1825.3,0.88483323]
[1743660197307,1.4141,1825.4,1825.3,0.00822323]
[1743660197506,5.50059,1825.4,1825.3,0.00822323]
[1743660198304,3.00059,1825.4,1825.3,0.00822323]
[1743660199106,6.62059,1825.4,1825.3,0.00822323]
[1743660200408,9.12059,1825.4,1825.3,0.00822323]
[1743660201422,8.244,1825.4,1824.3,3.2078]
[1743660201716,3.2078,1824.9,1824.5,0.755]
[1743660202011,3.74328,1824.8,1824.5,1.63199]
[1743660202210,1.3783,1824.7,1824.5,1.63199]
[1743660203325,3.2078,1824.6,1824.4,0.00822323]
[1743660203622,2.30462,1824.5,1824.4,0.00822323]
[1743660204008,1.4276,1824.5,1824.4,0.00822323]
[1743660204212,0.74822323,1824.8,1824.7,0.87692]
[1743660205022,3.95602323,1824.8,1824.7,0.87692]
[1743660205221,3.95602323,1824.8,1824.6,2.36434]
[1743660205415,1.4276,1824.7,1824.5,1.6313]
[1743660205613,3.2078,1824.6,1824.4,0.88525323]
[1743660205815,1.4532,1824.5,1824.4,0.88525323]
[1743660206018,3.2078,1824.6,1824.5,0.87702]
[1743660206221,4.661,1824.6,1824.5,3.05222]
[1743660206715,4.661,1824.6,1824.5,2.1752]
[1743660206916,4.661,1824.6,1824.4,0.00822323]
[1743660207117,1.4532,1824.5,1824.4,0.00822323]
[1743660207510,1.4532,1824.5,1824.4,0.88529323]
[1743660207917,1.4532,1824.5,1824.4,0.00822323]
[1743660208120,1.4532,1824.5,1824.4,1.47192323]
[1743660210624,2.33022,1824.5,1824.4,0.00822323]
[1743660213018,1.4532,1824.5,1824.4,0.00822323]
[1743660213219,1.4532,1824.5,1824.4,0.88529323]
[1743660213426,3.2078,1824.6,1824.5,0.87702]
[1743660213626,3.2078,1824.6,1824.5,3.02432]
[1743660215933,3.2078,1824.6,1824.5,2.1473]
[1743660216537,3.2078,1824.6,1824.5,3.02432]
[1743660218838,0.00822323,1824.8,1824.7,0.87692]
[1743660219434,0.00822323,1824.8,1824.7,2.31682]
[1743660236252,0.00822323,1824.8,1824.7,0.87692]
[1743660236547,0.76932323,1824.8,1824.7,0.87692]
[1743660237056,2.21702323,1824.8,1824.7,0.87692]
[1743660238448,5.42482323,1824.8,1824.5,0.7321]
[1743660238654,3.2078,1824.6,1824.4,0.00822323]
[1743660238851,1.4477,1824.5,1824.4,0.00822323]
[1743660239349,1.4477,1824.5,1824.4,0.88529323]
[1743660239652,1.4477,1824.5,1824.4,0.00822323]
[1743660239859,2.32472,1824.5,1824.4,0.00822323]
[1743660241257,1.4477,1824.5,1824.4,0.00822323]
[1743660243365,1.4477,1824.5,1824.4,0.88529323]
[1743660244563,1.4477,1824.5,1824.4,1.65189323]
[1743660249969,1.4477,1824.5,1824.4,0.77482323]
[1743660250272,1.4477,1824.5,1824.4,0.00822323]
[1743660252660,5.0427,1824.5,1824.4,0.00822323]
[1743660253067,7.5427,1824.5,1823.6,3.2078]
[1743660253273,3.2078,1824.3,1823.7,5.7176]
[1743660253470,3.2078,1824.3,1824.2,0.87716]
[1743660254172,4.6036,1824.3,1824.2,0.87716]
[1743660254775,4.6036,1824.3,1824.2,2.25286]
[1743660256070,1.4137,1824.4,1824.3,0.87711]
[1743660256071,0.6966,1824.4,1824.3,0.87711]
[1743660256369,0.6966,1824.4,1824.3,2.98991]
[1743660256873,2.0924,1824.4,1824.3,2.98991]
[1743660260065,0.6966,1824.4,1824.3,2.98991]
[1743660260677,0.00822323,1824.8,1824.7,0.87692]
[1743660260878,2.21052323,1824.8,1824.7,0.87692]
[1743660261476,0.00822323,1824.8,1824.7,0.87692]
[1743660261773,0.00822323,1824.8,1824.7,2.32762]
[1743660262180,0.00822323,1824.8,1824.7,5.53542]
[1743660262765,23.13002716,1825.2,1825.1,0.87673]
[1743660262970,23.13002716,1825.2,1825.1,4.47173]
[1743660263868,23.13002716,1825.2,1825.1,5.96523]
[1743660264273,0.00822323,1825.3,1825.2,0.87668]
[1743660264474,0.00822323,1825.3,1825.2,2.37018]
[1743660264873,27.08012716,1825.9,1825.8,0.87639]
[1743660265067,26.33782716,1825.9,1825.8,0.87639]
[1743660265782,23.13002716,1825.9,1825.8,0.87639]
[1743660266771,22.01540716,1825.9,1825.8,0.87639]
[1743660266970,0.00540501,1826.0,1825.9,0.87635]
[1743660267173,0.00540501,1826.0,1825.9,5.98255]
[1743660267576,0.00540501,1826.0,1825.9,5.98355]
[1743660267782,0.00540501,1826.0,1825.9,2.38055]
[1743660268081,0.00540501,1826.0,1825.9,5.98555]
[1743660268677,0.00540501,1826.0,1825.9,2.38055]
[1743660271383,0.00540501,1826.0,1825.9,0.87635]
[1743660271984,0.00540501,1826.0,1825.9,2.38615]
[1743660274180,1.41490501,1826.0,1825.9,0.87635]
[1743660275477,1.41490501,1826.0,1825.5,4.6197]
[1743660275782,3.2078,1825.9,1825.8,0.87637]
[1743660276382,3.2078,1825.9,1825.7,0.87641]
[1743660276684,1.3948,1825.8,1825.7,0.87641]
[1743660278693,1.3948,1825.8,1825.5,0.87651]
[1743660278885,0.736,1825.7,1825.6,0.87649]
[1743660280490,3.9438,1825.7,1825.6,0.87649]
[1743660282288,3.9438,1825.7,1825.4,1.4093]
[1743660282289,3.9438,1825.7,1825.4,0.87655]
[1743660282490,1.4019,1825.6,1825.4,0.87655]
[1743660283393,1.4019,1825.6,1825.2,1.4481]
[1743660283394,1.4019,1825.6,1825.5,0.87654]
[1743660283593,1.4019,1825.6,1825.2,1.4481]
[1743660283793,1.4019,1825.6,1825.4,0.87655]
[1743660284291,1.4019,1825.6,1825.5,0.87654]
[1743660286590,3.9438,1825.7,1825.6,0.87649]
[1743660286894,0.736,1825.7,1825.6,0.87649]
[1743660289290,3.9438,1825.7,1825.6,0.87649]
[1743660289491,0.736,1825.7,1825.6,0.87649]
[1743660291902,3.9438,1825.7,1825.6,0.87649]
[1743660292195,0.736,1825.7,1825.6,0.87649]
[1743660292397,3.9438,1825.7,1825.6,0.87649]
[1743660293701,0.736,1825.7,1825.6,0.87649]
[1743660295107,1.4948,1825.8,1825.7,0.87644]
[1743660295399,3.2078,1825.9,1825.8,0.87639]
[1743660296298,3.2078,1825.9,1825.8,2.33199]
[1743660296493,4.6761,1825.9,1825.8,2.33199]
[1743660298698,1.4683,1825.9,1825.8,2.33199]
[1743660299991,1.4683,1825.9,1825.8,0.87639]
[1743660301997,10.7681,1825.9,1825.1,3.21602323]
[1743660302201,3.2078,1825.5,1825.2,1.57656]
[1743660302406,0.7362,1825.4,1825.2,3.01796]
[1743660302597,2.9329,1825.4,1825.2,3.01796]
[1743660303001,1.3701,1825.3,1825.2,3.01796]
[1743660303398,1.3701,1825.3,1825.1,0.00822323]
[1743660303595,5.45457,1825.3,1825.1,0.00822323]
[1743660304101,2.24678,1825.2,1825.1,0.00822323]
[1743660304698,1.3701,1825.2,1825.1,0.00822323]
[1743660306809,2.24678,1825.2,1825.1,0.00822323]
[1743660307799,1.3701,1825.2,1825.1,0.00822323]
[1743660308103,1.3701,1825.2,1825.1,0.88495323]
[1743660309408,1.3701,1825.2,1825.1,2.26945323]
[1743660309606,1.3701,1825.2,1825.1,0.00822323]
[1743660309804,2.24678,1825.2,1825.1,0.00822323]
[1743660310012,0.87683,1824.9,1824.4,0.7617]
[1743660310307,0.87683,1824.9,1824.5,0.87697]
[1743660310308,0.6996,1824.8,1824.5,0.87697]
[1743660310511,2.123,1824.8,1824.5,2.26147]
[1743660310811,2.8374,1824.8,1824.6,0.87696]
[1743660311008,1.4234,1824.7,1824.6,0.87696]
[1743660311707,0.6996,1824.8,1824.5,1.39272323]
[1743660311910,4.63942323,1824.9,1824.5,1.39272323]
[1743660312112,1.43162323,1824.9,1824.5,1.39272323]
[1743660313307,4.63942323,1824.9,1824.5,4.60052323]
[1743660313506,4.63942323,1824.9,1824.5,1.39272323]
[1743660313706,1.4691,1824.8,1824.6,0.87694]
[1743660314507,1.4691,1824.8,1824.7,0.87692]
[1743660315709,1.4691,1824.8,1824.6,0.87694]
[1743660315917,1.4691,1824.8,1824.6,0.87697]
[1743660317916,1.4691,1824.8,1824.7,0.87692]
[1743660318421,0.00822323,1824.9,1824.8,0.87687]
[1743660319111,0.00822323,1824.9,1824.8,4.47087]
[1743660319513,3.2078,1825.3,1824.8,4.47087]
[1743660319514,0.7734,1825.4,1825.3,0.87663]
[1743660319716,6.5646,1825.8,1825.4,0.87656]
[1743660319921,4.6491,1825.7,1825.4,0.87656]
[1743660320218,1.4413,1825.6,1825.4,0.87656]
[1743660320413,1.4413,1825.6,1825.4,2.38246]
[1743660321716,1.4413,1825.6,1825.5,0.87654]
[1743660324015,3.21320501,1825.7,1825.6,0.87649]
[1743660324223,3.21320501,1825.7,1825.6,4.47549]
[1743660324515,0.00540501,1825.7,1825.6,4.47549]
[1743660325918,0.00540501,1825.7,1825.6,3.599]
[1743660326121,0.77880501,1825.7,1825.4,0.87656]
[1743660326316,1.4102,1825.6,1825.4,0.87656]
[1743660328823,3.2078,1825.5,1825.3,0.00822323]
[1743660329025,1.4785,1825.4,1825.3,0.00822323]
[1743660329917,2.35509,1825.4,1825.3,0.00822323]
[1743660332618,4.85509,1825.4,1825.3,0.00822323]
[1743660336323,2.35509,1825.4,1825.3,0.00822323]
[1743660337727,5.94909,1825.4,1825.3,0.00822323]
[1743660338324,0.87679,1825.0,1824.8,4.6892]
[1743660338520,0.87674,1825.1,1824.8,5.56606]
[1743660338730,0.7174,1825.3,1825.1,0.87671]
[1743660339027,2.1472,1825.3,1825.0,0.87675]
[1743660339221,2.1472,1825.3,1825.1,1.4814]
[1743660339815,2.1472,1825.3,1825.1,2.35813]
[1743660341225,1.3951,1825.2,1825.1,1.4814]
[1743660342018,4.6029,1825.2,1825.0,0.00822323]
[1743660342222,1.60403,1825.1,1825.0,0.00822323]
[1743660342417,3.10063,1825.1,1825.0,0.00822323]
[1743660342632,2.37333,1825.1,1825.0,0.00822323]
[1743660348841,1.4966,1825.1,1824.6,3.09864]
[1743660349138,8.2046,1825.0,1824.6,2.2217]
[1743660349338,2.27963,1824.9,1824.7,2.3494]
[1743660349937,1.4028,1824.9,1824.7,2.3494]
[1743660350135,1.4028,1824.9,1824.8,1.4725]
[1743660350740,2.27963,1824.9,1824.8,1.4725]
[1743660351439,1.4028,1824.9,1824.8,1.4725]
[1743660351936,7.67861,1825.0,1824.8,1.4725]
[1743660352140,6.8018,1825.0,1824.8,2.34936]
[1743660352339,3.2078,1825.0,1824.9,0.6998]
[1743660352541,4.08458,1825.0,1824.9,2.1231]
[1743660352743,5.50978,1825.0,1824.9,2.1231]
[1743660353441,3.2078,1825.0,1824.9,2.1231]
[1743660353640,4.08458,1825.0,1824.9,2.8501]
[1743660353831,5.50978,1825.0,1824.9,2.8501]
[1743660356232,5.50978,1825.0,1824.9,2.1231]
[1743660357133,5.50978,1825.0,1824.6,0.00822323]
[1743660357134,4.633,1825.0,1824.6,0.00822323]
[1743660357436,4.0847,1824.8,1824.6,2.20912323]
[1743660357644,1.4153,1824.7,1824.6,2.20912323]
[1743660359045,2.29222,1824.7,1824.6,0.77872323]
[1743660359345,2.29222,1824.7,1824.6,0.00822323]
[1743660360843,2.29222,1824.7,1824.1,0.7091]
[1743660360844,3.9153,1824.7,1824.1,0.7091]
[1743660361047,4.08496,1824.2,1824.1,0.7091]
[1743660361251,3.2078,1824.2,1824.1,0.7091]
[1743660361642,3.2078,1824.2,1824.1,2.1678]
[1743660363041,4.6352,1824.2,1824.1,2.1678]
[1743660363243,5.51236,1824.2,1824.1,2.1678]
[1743660363448,4.6352,1824.2,1824.1,2.1678]
[1743660363843,5.51236,1824.2,1824.1,2.1678]
[1743660365150,5.51236,1824.2,1824.1,0.7091]
[1743660366149,5.51236,1824.2,1824.0,1.38662323]
[1743660366150,0.87721,1824.1,1824.0,1.38662323]
[1743660366345,2.2404,1824.1,1824.0,1.38662323]
[1743660366849,3.2078,1824.2,1824.0,1.38662323]
[1743660367351,5.53376,1824.2,1824.1,0.7385]
[1743660367752,0.00822323,1824.3,1824.1,0.7385]
[1743660367947,0.00822323,1824.3,1824.2,2.1816]
[1743660368154,0.00822323,1824.3,1824.1,0.7385]
[1743660368155,4.66482323,1824.3,1824.1,0.7385]
[1743660368353,2.32596,1824.2,1824.1,0.7385]
[1743660370553,4.09316323,1824.3,1824.1,0.7385]
[1743660370752,0.00822323,1824.3,1824.2,1.506]
[1743660370952,1.39312323,1824.3,1824.2,1.506]
[1743660371155,2.27023323,1824.3,1824.2,1.506]
[1743660371856,1.39312323,1824.3,1824.2,1.506]
[1743660372454,2.27023323,1824.3,1824.2,1.506]
[1743660373753,1.39312323,1824.3,1824.2,1.506]
[1743660374954,1.39312323,1824.3,1824.2,2.38316]
[1743660374955,0.00822323,1824.3,1824.2,2.38316]
[1743660375251,0.00822323,1824.3,1824.2,3.12276]
[1743660377655,0.00822323,1824.3,1824.2,2.2456]
[1743660377856,1.39932323,1824.3,1824.2,2.2456]
[1743660378056,0.00822323,1824.3,1824.2,3.12276]
[1743660387863,0.00822323,1824.3,1824.2,2.2456]
[1743660388064,0.70472323,1824.3,1824.2,1.506]
[1743660388255,0.70472323,1824.3,1824.1,1.61568]
[1743660388563,0.00822323,1824.3,1824.2,0.87716]
[1743660388756,0.00822323,1824.3,1824.2,2.36546]
[1743660392265,3.23e-06,1824.3,1824.2,8.07326]
[1743660392563,4.7193,1824.9,1824.4,2.19261]
[1743660392758,3.2078,1824.9,1824.8,0.87687]
[1743660393356,25.19854069,1825.3,1824.8,3.595]
[1743660393567,26.71004069,1825.3,1825.2,0.87668]
[1743660394253,23.50224069,1825.3,1825.2,0.87668]
[1743660394457,1.5115,1825.3,1825.2,0.87668]